[Event "1000GM Saint Louis 2022"]
[Site "Saint Louis"]
[Date "2022.07.21"]
[Round "5.4"]
[White "Dragun, Kamil"]
[Black "Yu, Jennifer"]
[Result "1-0"]
[ECO "C43"]
[WhiteElo "2563"]
[BlackElo "2268"]
[Annotator "TA"]
[PlyCount "199"]
[EventDate "2022.07.20"]
[EventType "tourn"]
[EventCountry "USA"]
[SourceTitle "playchess.com"]
[Source "ChessBase"]
[SourceQuality "1"]
[TimeControl "5400+30"]

{[%evp 15,199,36,56,15,37,17,15,0,14,6,8,22,16,0,0,0,17,9,14,11,16,0,0,0,16,21,23,29,17,31,59,58,56,36,70,64,112,114,142,133,132,126,137,129,227,172,171,178,185,141,135,136,1504,1510,1453,1448,1385,1345,1335,1330,379,370,1322,1330,1330,1009,822,770,570,437,430,416,358,375,1673,1129,973,800,1529,1229,727,715,4918,4670,4667,4654,4435,4147,4147,4140,4016,3642,3566,0,0,0,0,0,2041,1701,1674,1541,1545,1538,1525,1503,1468,1386,1338,1321,1237,333,1447,1336,1297,1287,1215,1184,1142,1127,841,332,329,322,312,195,892,181,181,5,106,13,146,146,160,160,235,235,235,227,351,328,339,160,160,0,160,0,306,313,607,608,543,532,449,414,1179,1168,1112,708,1295,1250,1400,1400,902,937,29971,29972,29976,29977,29976,29975,29974,29975,29979,29980,29980,29980,29981,29982,29982,29980,29980,29981,6170,5352]} 1. e4 {[%emt 0:00:06]} e5 {[%emt 0:00:10]} 2. Nf3 {[%emt 0:00:06]} Nf6 {[%emt 0:00:27]} 3. d4 Nxe4 {[%emt 0:00:28]} 4. Bd3 {[%emt 0:00:39]} d5 {[%emt 0:00:39]} 5. Nxe5 {[%emt 0:00:11]} Be7 {[%emt 0:06:12]} 6. O-O {[%emt 0:00:52]} O-O {[%emt 0:01:46]} 7. c4 {[%emt 0:00:11]} Nf6 {[%emt 0:02:10]} 8. Nc3 {[%emt 0:04:31]} c6 {[%emt 0:08:18]} 9. Bg5 {[%emt 0:07:52] C43: Petroff Defence: 3 d4.} Nbd7 {[%emt 0:13:45]} 10. Re1 {[%emt 0:13:44]} Nxe5 {[%emt 0:24:29] [#]} 11. Rxe5 $146 {[%emt 0:19:17] The position is equal.} ({Predecessor:} 11. dxe5 Ng4 12. Bxe7 Qxe7 13. h3 dxc4 14. Bf1 Nh6 15. Bxc4 Rd8 16. Qf3 Be6 17. Qe4 {1-0 (60) Rabhi,C (2089)-Le Gallo,F (1960) Gorges 2004}) 11... dxc4 {[%emt 0:05:38]} 12. Bxc4 {[%emt 0:01:25]} h6 {[%emt 0:03:04]} 13. Bh4 {[%emt 0:02:46]} Bd6 {[%emt 0:01:53]} 14. Re1 {[%emt 0:10:02]} g5 {[%emt 0:05:28]} 15. Bg3 {[%emt 0:00:51]} Bxg3 {[%emt 0:00:19]} 16. hxg3 {[%emt 0:00:18]} Bf5 {[%emt 0:00:56]} 17. Bb3 {[%emt 0:16:22]} Bg6 {[%emt 0:09:22]} 18. Qf3 {[%emt 0:04:03]} Kg7 {[%emt 0:02:45]} 19. d5 {[%emt 0:01:11]} cxd5 {[%emt 0:02:53]} 20. Nxd5 {[%emt 0:00:08]} Nxd5 {[%emt 0:00:09]} 21. Bxd5 {[%emt 0:00:09]} Rb8 {[%emt 0:02:12]} 22. Rac1 {[%emt 0:03:02]} b5 {[%emt 0:02:21]} 23. Rc6 {[%emt 0:01:25]} b4 {[%emt 0:02:17]} 24. Ra6 {[%emt 0:04:13]} Rb5 {[%emt 0:01:04]} 25. Bb3 {[%emt 0:02:59] White is much more active.} Rf5 {[%emt 0:02:09]} (25... Ra5 $14 26. Rc6 Qd4) 26. Qe3 $16 {[%emt 0:00:44]} Ra5 {[%emt 0:01:21]} 27. Rxa5 {[%emt 0:01:52]} Qxa5 {[%emt 0:00:04]} 28. Qd4+ $1 {[%emt 0:00:04]} Kh7 {[%emt 0:00:53]} 29. Re7 {[%emt 0:00:17]} Qf5 {[%emt 0:00:58]} (29... Qb6 $16 {was necessary.} 30. Qxb6 axb6) 30. g4 {[%emt 0:02:48]} (30. Qxa7 Qb1+ 31. Kh2 Qxb2 32. Bxf7 Bxf7) (30. Qxb4 $6 Rd8 31. Qc3 (31. Rxa7 Qb1+ 32. Kh2 Qxb2 $16) 31... Rc8) 30... Qb1+ {[%emt 0:00:31]} 31. Kh2 {[%emt 0:00:01]} a5 {[%emt 0:00:43]} 32. Ra7 {[%emt 0:01:32]} Qc1 {[%emt 0:00:22]} 33. Qf6 {[%emt 0:01:25] Inhibits Qc6.} Qc5 $2 {[%emt 0:00:25][%mdl 8192] [#]} (33... Qd2 $16 34. Bc4 (34. Rxa5 Qe2 $16) (34. Bxf7 Bxf7 35. Rxf7+ Rxf7 $16) 34... Qd8) 34. Bxf7 $1 $18 {[%emt 0:00:54]} Bxf7 {[%emt 0:00:04]} (34... Rxf7 35. Rxf7+) 35. Rxf7+ {[%emt 0:00:05]} Rxf7 {[%emt 0:00:03]} 36. Qxf7+ {[%emt 0:00:05][%mdl 4096] Endgame KQ-KQ} Kh8 {[%emt 0:00:02]} 37. Qf6+ {[%emt 0:00:08]} Kg8 {[%emt 0:00:10]} 38. Qg6+ {[%emt 0:00:10]} Kh8 $2 {[%emt 0:00:20]} (38... Kf8 39. Qxh6+ Ke7) 39. Qxh6+ {[%emt 0:00:09]} Kg8 {[%emt 0:00:03]} 40. Qg6+ {[%emt 0:00:17]} Kh8 {[%emt 0:00:03]} 41. Qf6+ {[%emt 0:00:05]} Kg8 {[%emt 0:00:05]} 42. Qf5 {[%emt 0:00:34]} Qd6+ {[%emt 0:00:03]} 43. g3 {[%emt 0:00:39]} Qd2 {[%emt 0:01:08]} 44. Kg2 {[%emt 0:00:40]} (44. Qxa5 Qxf2+ 45. Kh3 Qf1+ 46. Kh2 Qf2+ 47. Kh3 Qf1+ 48. Kh2 Qf2+ $11) 44... a4 {[%emt 0:00:24]} (44... Qd8 45. Kh3 Kg7 46. Qe5+ Kg8) 45. Qg6+ {[%emt 0:00:09]} Kf8 {[%emt 0:00:38]} 46. Qf6+ {[%emt 0:00:01]} Ke8 {[%emt 0:01:30]} 47. Qc6+ {[%emt 0:00:11]} Kf8 48. Qxa4 {[%emt 0:00:45]} Qxb2 {[%emt 0:01:44]} 49. Qa8+ {[%emt 0:00:23]} Kg7 {[%emt 0:00:46]} 50. Qd5 {[%emt 0:00:08]} Kh6 {[%emt 0:00:42]} 51. Qe6+ {[%emt 0:01:24]} Kg7 {[%emt 0:00:25]} 52. Qd7+ {[%emt 0:01:06]} Kh6 {[%emt 0:00:46]} 53. Qd5 {[%emt 0:00:08]} Kg6 {[%emt 0:00:34]} 54. Kg1 $2 {[%emt 0:01:03]} (54. Qg8+ $18 Kh6 55. Qf7) 54... Qa1+ $1 $11 {[%emt 0:00:09]} 55. Kh2 $2 {[%emt 0:00:38][%mdl 8192]} (55. Kg2 $11 Qc3 56. Qf5+ Kh6 57. Qf7) 55... Qh8+ $1 $18 {[%emt 0:00:04]} 56. Kg2 {[%emt 0:00:07]} Qb2 $1 {[%emt 0:00:05]} 57. Qf5+ {[%emt 0:00:21]} Kh6 {[%emt 0:00:04]} 58. Qf7 {[%emt 0:00:11]} Qd2 {[%emt 0:02:06]} 59. Kh3 {[%emt 0:00:59] Hoping for f4.} Qc1 {[%emt 0:01:04]} 60. Qe6+ {[%emt 0:00:42]} Kg7 {[%emt 0:00:10]} 61. Qd7+ {[%emt 0:00:32]} Kh6 {[%emt 0:00:35]} 62. Qd6+ {[%emt 0:00:06]} Kg7 {[%emt 0:00:21]} 63. Qd4+ $2 {[%emt 0:00:04]} (63. Qe5+ Kh7 64. Qf5+ Kh6 65. Qf6+ Kh7 66. Kg2) 63... Kh6 $2 {[%emt 0:00:18]} (63... Kg6 64. Qe4+ Kh6 65. Qe6+ Kg7 66. Qe5+ Kh7 67. Qf5+ Kh8) 64. Kh2 {[%emt 0:01:00]} Qc3 {[%emt 0:00:44]} 65. Qd6+ {[%emt 0:00:10]} Kg7 {[%emt 0:00:41]} 66. Qe7+ {[%emt 0:00:03]} Kg6 {[%emt 0:00:30]} 67. Qe6+ {[%emt 0:00:11]} Kg7 {[%emt 0:00:33]} 68. Qe2 $2 {[%emt 0:01:31]} (68. Qd7+ Kg6 69. Qf5+ Kh6 70. Qf7) 68... Qd4 {[%emt 0:00:29]} 69. Kg2 {[%emt 0:01:16]} Qd5+ {[%emt 0:00:30]} 70. f3 {[%emt 0:00:24]} Qd4 $2 {[%emt 0:00:51]} (70... Qd6 71. Qe1 Kf6) 71. Kh3 $2 {[%emt 0:00:35]} (71. Qe7+ Kh6 72. Qf8+ Kg6 73. Qf5+ Kh6 74. f4) 71... Qa1 {[%emt 0:00:28]} 72. f4 $2 {[%emt 0:01:30]} ({Better is} 72. Kh2 $18) 72... Qh1+ $11 {[%emt 0:00:29]} 73. Qh2 {[%emt 0:00:02]} Qb1 {[%emt 0:00:26]} (73... Qc1 $1 $11 {keeps the balance.}) 74. f5 $16 {[%emt 0:01:11]} (74. fxg5 $6 Qh7+ 75. Kg2 Qe4+ 76. Kh3 Qh7+ 77. Kg2 Qe4+ 78. Kh3 Qh7+ $11) 74... Kf6 {[%emt 0:00:26]} 75. Qg2 {[%emt 0:00:17]} Qc1 {[%emt 0:00:03]} (75... Ke7 $16 76. Qe2+ Kf8) 76. Kh2 $1 $18 {[%emt 0:00:27]} Qc4 {[%emt 0:00:35]} 77. Qb2+ $1 {[%emt 0:00:28]} Qc3 {[%emt 0:00:06]} (77... Ke7 $142 78. Kg2 Qxg4) 78. Qe2 $1 {[%emt 0:00:10] Strongly threatening Qe6+.} Qc6 {[%emt 0:00:20] Prevents Qe6+.} 79. Qd2 {[%emt 0:00:35]} (79. Qd3 $1 $18 {[%cal Rd3d8] is the precise move to win.}) 79... Qf3 $16 {[%emt 0:01:22]} 80. Qb2+ {[%emt 0:01:26]} (80. Qxb4 Qf2+ 81. Kh3 Qf1+ 82. Kh2 Qf2+ 83. Kh3 Qf1+ 84. Kh2 Qf2+ $11) 80... Qc3 {[%emt 0:00:13]} 81. Qe2 {[%emt 0:00:38]} (81. Qf2 $16) 81... Qc6 $18 {[%emt 0:00:13] [#]} 82. Qd3 $1 {[%emt 0:00:51] aiming for Qd8+.} Qc5 $2 {[%emt 0:01:08] [#]} (82... Qa4 83. Qd4+ Kf7 84. Qc4+ Kg7 85. Qc7+ Kg8 86. Qc8+ Kf7 87. Qe6+ Kf8 88. Qh6+ Ke8 89. Qh5+ (89. Qxg5 Qxa2+ 90. Kh3 Qd5 $16) 89... Kf8 90. Qh6+ (90. Qxg5 Qxa2+ 91. Kh3 Qd5 $16) 90... Ke8 91. Qh5+ (91. Qxg5 Qxa2+ 92. Kh3 Qd5 $16) 91... Kf8 92. Qh6+ (92. Qxg5 Qxa2+ 93. Kh3 Qd5 $16)) 83. Kg2 $1 {[%emt 0:00:36] Black must now prevent Qd8+.} Qc6+ {[%emt 0:00:13]} 84. Kf2 {[%emt 0:00:02]} Qc5+ {[%emt 0:00:16]} 85. Ke2 {[%emt 0:00:32]} Qe5+ {[%emt 0:00:10]} (85... Qg1 $142 86. Qe3 Qg2+ 87. Kd3 Kf7 88. Qe6+ (88. Qxg5 Qd5+ 89. Ke3 Qc5+ 90. Kf3 Qd5+ 91. Ke3 Qc5+ 92. Kf3 Qd5+ 93. Ke3 $16) 88... Kf8 89. Qf6+ Ke8 90. Qe6+ Kf8 91. Qf6+ Ke8 92. Qe5+ Kf8) 86. Kf3 {[%emt 0:00:15] And now Qd8+ would win.} Qa1 {[%emt 0:01:24]} 87. Qa6+ {[%emt 0:01:05]} Kf7 {[%emt 0:00:22]} 88. Qc4+ {[%emt 0:00:11]} Kg7 {[%emt 0:00:18]} 89. Ke4 {[%emt 0:00:46] White threatens Qd4+ and mate.} Qe1+ {[%emt 0:00:22]} 90. Kd5 {[%emt 0:00:18] Qc7+ would kill now.} Qxg3 {[%emt 0:01:00]} 91. Qd4+ {[%emt 0:00:32]} Kf7 {[%emt 0:00:28]} 92. Qa7+ {[%emt 0:00:06]} Ke8 {[%emt 0:00:37]} 93. Ke6 {[%emt 0:00:50][%csl Ge6][%cal Ra7e7]} Qe1+ {[%emt 0:00:06]} 94. Kf6 {[%emt 0:00:22]} Qc3+ {[%emt 0:00:36]} 95. Kg6 {[%emt 0:00:21]} Qc6+ {[%emt 0:00:28]} 96. f6 {[%emt 0:00:22][%csl Gf6][%cal Ra7e7]} Qe4+ {[%emt 0:00:32]} 97. Kg7 {[%emt 0:00:11]} Qe5 {[%emt 0:00:20]} 98. Qf7+ {[%emt 0:00:31]} Kd8 {[%emt 0:00:06]} 99. Qf8+ {[%emt 0:00:13]} Kd7 {[%emt 0:00:05]} 100. Qxb4 {[%emt 0:00:11] Weighted Error Value: White=0.15 (very precise) /Black=0.12 (very precise)} 1-0

[Event "1000GM Saint Louis 2022"]
[Site "Saint Louis"]
[Date "2022.07.21"]
[Round "5.5"]
[White "Kretchetov, Alexandre"]
[Black "Chandra, Akshat"]
[Result "1/2-1/2"]
[ECO "E71"]
[WhiteElo "2219"]
[BlackElo "2485"]
[Annotator "TA"]
[PlyCount "133"]
[EventDate "2022.07.20"]
[EventType "tourn"]
[EventCountry "USA"]
[SourceTitle "playchess.com"]
[Source "ChessBase"]
[SourceQuality "1"]
[TimeControl "5400+30"]

{[%evp 18,133,52,47,57,50,47,3,44,3,2,0,10,0,0,0,0,0,16,8,3,0,10,0,39,16,33,10,42,53,33,35,66,9,72,59,76,88,83,30,30,0,16,25,39,-57,0,0,15,13,39,0,59,67,91,38,20,16,21,30,41,52,49,36,94,0,0,0,0,0,0,0,0,0,0,0,0,0,0,0,0,-16,0,0,0,-79,0,-275,-6,-231,-234,-1019,-1008,-900,-900,-854,-761,-29968,-29969,-29939,-1777,-1064,0,-5027,-718,-703,-12,-12,0,0,0,0,0,0,0,0,0,0]} 1. d4 {[%emt 0:04:56] Hazai,L} Nf6 {[%emt 0:00:07]} 2. c4 {[%emt 0:00:53]} g6 {[%emt 0:01:16]} 3. Nc3 {[%emt 0:00:10]} Bg7 {[%emt 0:00:05]} 4. e4 {[%emt 0:00:05]} d6 {[%emt 0:00:06]} 5. h3 {[%emt 0:00:31]} Nbd7 {[%emt 0:00:43]} 6. Bd3 {[%emt 0:02:18]} e5 {[%emt 0:02:00]} 7. d5 {[%emt 0:00:13]} Nc5 {[%emt 0:06:22]} 8. Bc2 {[%emt 0:00:13]} a5 {[%emt 0:00:05]} 9. Bg5 {[%emt 0:03:55]} O-O {[%emt 0:06:51]} 10. Nge2 {[%emt 0:00:08]} Bd7 {[%emt 0:14:25] E71: King's Indian: 4 e4 d6 5 h3.} 11. Qd2 {[%emt 0:17:59]} Qe8 {[%emt 0:03:38]} 12. g4 {[%emt 0:02:56] [#]} c6 $146 {[%emt 0:08:32]} ({Predecessor:} 12... b5 13. cxb5 Bxb5 14. Ng3 Ba6 15. O-O-O Nfd7 16. Bh6 f6 17. Bxg7 Kxg7 18. h4 Nb6 {0-1 (48) Yermolinsky,A (2575)-Radjabov,T (2628) Hyderabad 2002 CBM 092 [Hazai,L]}) 13. Ng3 {[%emt 0:05:11]} cxd5 {[%emt 0:00:51]} 14. cxd5 {[%emt 0:00:06]} b5 {[%emt 0:01:03]} 15. Nd1 {[%emt 0:05:45]} b4 {[%emt 0:01:35]} 16. f3 {[%emt 0:00:48]} Qb8 {[%emt 0:07:35]} 17. Bb1 {[%emt 0:04:26]} Ba4 {[%emt 0:11:42]} 18. h4 {[%emt 0:03:04]} Bxd1 {[%emt 0:01:01]} 19. Kxd1 {[%emt 0:03:57]} Qb5 {[%emt 0:07:28]} 20. h5 {[%emt 0:00:53]} Qa4+ {[%emt 0:04:16]} 21. Ke2 {[%emt 0:01:24]} b3 {[%emt 0:04:04]} 22. Be3 {[%emt 0:08:00]} bxa2 {[%emt 0:06:55]} 23. Rxa2 {[%emt 0:00:09] Dancing on a razor blade.} Qc4+ {[%emt 0:02:41]} 24. Kf2 {[%emt 0:00:09]} Nb3 {[%emt 0:00:56]} 25. Qd3 {[%emt 0:01:47]} (25. Qc3 $14 Qxc3 26. bxc3) 25... Qb4 {[%emt 0:00:54]} (25... Qxd3 $11 26. Bxd3 Rfb8) 26. Bc2 {[%emt 0:07:29]} (26. h6 $5 {[%cal Rh6g7]} Bh8 27. Bc2 $16) 26... Nd4 {[%emt 0:01:23]} 27. Ba4 $1 {[%emt 0:01:13] Inhibits Nd7.} Rfd8 {[%emt 0:02:22]} 28. Rc1 {[%emt 0:01:57]} (28. Bg5 $16) 28... Nd7 $1 $11 {[%emt 0:00:25]} 29. Bc6 {[%emt 0:04:06] This bishop pair is nice.} Rab8 {[%emt 0:02:18]} 30. Bxd7 {[%emt 0:10:10]} Rxd7 {[%emt 0:00:05]} 31. Qa6 {[%emt 0:00:53]} (31. h6 $14 Bf6 32. g5) 31... Rdd8 {[%emt 0:01:57]} (31... Rdb7 $15) 32. Rc3 {[%emt 0:00:44]} Ra8 {[%emt 0:01:27]} 33. Qd3 {[%emt 0:00:19]} a4 {[%emt 0:01:09]} 34. Ne2 {[%emt 0:00:21]} Nb3 {[%emt 0:00:38]} (34... gxh5 $11 35. gxh5 Bf6) 35. Rc4 $14 {[%emt 0:00:44]} Qb7 {[%emt 0:00:33]} 36. h6 {[%emt 0:00:48]} ({White should try} 36. Raxa4 $16 Rxa4 37. Rxa4) 36... Bf8 $1 {[%emt 0:00:33]} 37. Rcxa4 {[%emt 0:00:24]} Rxa4 {[%emt 0:00:06]} 38. Rxa4 {[%emt 0:00:06] Hoping for Ra7.} Nc5 $1 {[%emt 0:00:00]} 39. Bxc5 {[%emt 0:02:48]} dxc5 {[%emt 0:00:36]} 40. Qd2 {[%emt 0:01:37]} Qe7 {[%emt 0:00:56] [#]} (40... Rb8 $14) 41. Ra1 {[%emt 0:00:00] White is more active.} (41. Kg3 $1 $16) 41... Qh4+ $11 {[%emt 0:00:23]} 42. Kg2 $1 {[%emt 0:00:26]} Bxh6 43. Qc3 {[%emt 0:00:25][%csl LRc5,LRe5]} Qe7 44. Ra5 {[%emt 0:00:36]} Bf8 {[%emt 0:01:44]} 45. Nc1 {[%emt 0:00:12]} h5 {[%emt 0:00:14]} 46. Nd3 {[%emt 0:01:02][%csl LRc5,LRe5]} hxg4 {[%emt 0:00:18]} 47. fxg4 {[%emt 0:01:31]} Qg5 {[%emt 0:00:59]} 48. Nf2 {[%emt 0:00:41]} ({Not} 48. Nxe5 $2 Bg7 49. Nxf7 Qxg4+ 50. Qg3 Qxe4+ 51. Qf3 Qxf3+ 52. Kxf3 Rxd5 $19) 48... Rb8 {[%emt 0:00:21][%cal Oc5c4] Threatens to win with ...c4!} 49. Ra7 {[%emt 0:00:27]} Qf4 {[%emt 0:00:30][%cal Oc5c4] And now ...c4! would win.} 50. b3 {[%emt 0:00:54]} Kg7 {[%emt 0:00:45]} 51. Qd3 {[%emt 0:00:37]} (51. Qf3 $11) 51... Rb6 {[%emt 0:00:26]} ({Better is} 51... Bd6 $17 {[%cal Oc5c4] Strongly threatening ...c4!} 52. Ra1 Rh8) 52. Ra6 $2 {[%emt 0:01:12][%mdl 8192]} (52. Ra1 $11) 52... Rb4 $2 {[%emt 0:00:32]} (52... c4 $1 $19 {[%cal Rc4d3]} 53. Qxc4 {[#]} Bc5 $1 {[%mdl 512]} 54. Qxc5 Rxa6) 53. Ra8 $2 {[%emt 0:01:36]} (53. Ra2 $11 {and White has nothing to worry.}) 53... c4 $1 $19 {[%emt 0:00:18]} 54. bxc4 {[%emt 0:02:21]} ({Avoid the trap} 54. Qh3 $2 Rxb3 55. Ra2 Rxh3 $19) (54. Qf3 Qxf3+ 55. Kxf3 cxb3 56. Ra1) 54... Rb2 $1 {[%emt 0:00:03][%csl LRf2,LRg4]} 55. Qf3 {[%emt 0:00:07]} Bc5 {[%emt 0:00:05]} 56. Qxf4 {[%emt 0:00:06]} exf4 {[%emt 0:00:05]} 57. e5 {[%emt 0:00:08]} Rxf2+ {[%emt 0:00:06] KRB-KR} 58. Kh3 {[%emt 0:00:02]} Rf3+ {[%emt 0:00:22]} (58... f3 $142 59. Ra1 Rc2 60. Kg3 f2 61. Rf1 Rxc4 62. Kf3 Rc3+ 63. Ke2 Rg3 64. d6 Rxg4 65. d7 Re4+ 66. Kf3 Re3+ 67. Kxf2 Rxe5+ 68. Kg3 Rd5 69. Rc1 Bb6 70. Kf4 Rd4+ 71. Kg3 Rxd7 72. Kh3 f5 73. Rc6 Bc7 74. Rc5 Kf6 75. Rc6+ Bd6 76. Rc8 Bc7 77. Kg2 Kg7 78. Kg1 g5 79. Ra8 g4 80. Ra3 f4 81. Kf1 f3 82. Kf2 Rd2+ 83. Ke3 Re2+ 84. Kd4 f2 85. Ra7 Re7 86. Ra1 g3 87. Kd5 g2 88. Kd4 f1=Q 89. Rxf1 gxf1=Q 90. Kc3 Qb5 91. Kc2 Qc4+ 92. Kd2 Bf4+ 93. Kd1 Qe2#) 59. Kh2 {[%emt 0:00:15]} Rf2+ {[%emt 0:00:15]} (59... Rd3 $142 60. Ra1 Bd4) 60. Kh3 {[%emt 0:00:03]} Re2 {[%emt 0:00:57]} (60... f3 $142 61. Ra1 Rc2) 61. d6 {[%emt 0:00:25]} f3 $2 {[%emt 0:01:59]} (61... Rd2 $19 62. Ra5 Bd4) 62. d7 $11 {[%emt 0:00:07] The position is equal.} f2 {[%emt 0:00:06]} 63. Rg8+ {[%emt 0:00:16][%mdl 64] Decoy} Kxg8 {[%emt 0:00:22]} 64. d8=Q+ {[%emt 0:00:06]} Kg7 {[%emt 0:01:27]} 65. Qf6+ {[%emt 0:00:20]} Kg8 {[%emt 0:00:13] ( -> ...Re1)} 66. Qd8+ {[%emt 0:00:16]} Kg7 {[%emt 0:00:46]} 67. Qf6+ {[%emt 0:00:05] And White is the lucky defender.  Weighted Error Value: White=0.58/Black=0.57} 1/2-1/2

[Event "1000GM Saint Louis 2022"]
[Site "Saint Louis"]
[Date "2022.07.21"]
[Round "6.1"]
[White "Woodward, Andy"]
[Black "Chandra, Akshat"]
[Result "1-0"]
[ECO "E73"]
[WhiteElo "2486"]
[BlackElo "2485"]
[Annotator "TA"]
[PlyCount "77"]
[EventDate "2022.07.20"]
[EventType "tourn"]
[EventCountry "USA"]
[SourceTitle "playchess.com"]
[Source "ChessBase"]
[SourceQuality "1"]
[TimeControl "5400+30"]

{[%evp 12,77,52,35,41,27,43,15,14,20,21,15,41,39,76,67,76,50,70,44,107,104,103,103,104,104,104,115,108,111,115,104,110,108,117,93,82,39,42,30,34,31,193,120,175,211,326,308,344,366,327,319,764,751,764,695,552,531,1036,1074,1781,1698,29990,29991,29995,29996,29996,371]} 1. d4 {[%emt 0:00:01]} Nf6 {[%emt 0:08:08]} 2. c4 {[%emt 0:00:08]} g6 {[%emt 0:00:11]} 3. Nc3 {[%emt 0:00:08]} Bg7 {[%emt 0:00:21]} 4. e4 {[%emt 0:00:10]} d6 {[%emt 0:00:18]} 5. Be2 {[%emt 0:00:05]} O-O {[%emt 0:00:32]} 6. Be3 {[%emt 0:00:04]} c6 {[%emt 0:00:50]} 7. h3 {[%emt 0:02:40]} e5 {[%emt 0:03:51] E73: King's Indian: Averbakh Variation without 6...c5.} 8. d5 {[%emt 0:03:46]} Na6 {[%emt 0:09:15]} 9. g4 {[%emt 0:09:53][%cal Bg2g4,Bg4g5][%mdl 32] [#]} Nc5 $146 {[%emt 0:03:17] The position is equal.} ({Predecessor:} 9... cxd5 10. cxd5 Nc5 11. Qc2 Bd7 12. b4 Na6 13. Qb2 Rc8 14. Bd3 h5 15. g5 Nh7 {0-1 (77) Tarasova,V (2226)-Bodnaruk,A (2411) Chess.com INT 2020}) 10. f3 {[%emt 0:05:35]} a5 {[%emt 0:00:20]} 11. h4 {[%emt 0:08:17]} h5 {[%emt 0:12:19]} 12. g5 {[%emt 0:00:52]} Nh7 {[%emt 0:00:02]} 13. Nh3 {[%emt 0:02:45]} a4 {[%emt 0:06:08]} 14. Qd2 {[%emt 0:04:14]} cxd5 {[%emt 0:01:41]} 15. Nxd5 {[%emt 0:03:34]} Be6 {[%emt 0:11:01]} ({Black should try} 15... Re8 $14) 16. O-O-O $16 {[%emt 0:07:14]} Bxd5 {[%emt 0:01:14]} 17. cxd5 {[%emt 0:01:34]} (17. Qxd5 $6 Qb6 $11) 17... Qb6 {[%emt 0:20:40]} 18. Kb1 {[%emt 0:01:47]} Rfb8 {[%emt 0:01:10]} 19. Rc1 {[%emt 0:01:45]} Nf8 {[%emt 0:00:22]} 20. Nf2 {[%emt 0:01:36]} Nfd7 {[%emt 0:00:57]} 21. Nd3 {[%emt 0:00:46]} Bf8 {[%emt 0:00:22]} 22. Rhd1 {[%emt 0:00:58]} Qa7 {[%emt 0:03:13]} 23. Nxc5 {[%emt 0:04:58]} Nxc5 {[%emt 0:00:52]} 24. Bxc5 {[%emt 0:01:01]} dxc5 {[%emt 0:00:02]} 25. f4 {[%emt 0:02:17]} a3 {[%emt 0:07:17]} 26. b3 {[%emt 0:02:38]} exf4 $2 {[%emt 0:00:46] [#]} ({Black should play} 26... b5 $1 $14) 27. e5 {[%emt 0:02:01]} ({Much less strong is} 27. Qxf4 b5 $16) (27. d6 $1 $18) 27... b5 {[%emt 0:00:38]} (27... Re8 $16) 28. d6 $18 {[%emt 0:01:48]} c4 {[%emt 0:00:33]} (28... Rb6 {was necessary.} 29. Qxf4 (29. Bf3 Re8 $18) 29... c4) 29. Bf3 {[%emt 0:00:42]} (29. Qxf4 Qd7 $16) 29... Qd7 {[%emt 0:03:17]} 30. Bxa8 {[%emt 0:02:14]} ({Not} 30. bxc4 $2 bxc4+ 31. Ka1 Qb5 $19) (30. Qxf4 Ra7 31. Bd5 Qh3 $16) 30... Rxa8 {[%emt 0:01:10]} 31. Qxf4 {[%emt 0:00:41]} cxb3 $2 {[%emt 0:01:43]} (31... Kh7 32. Qe4 (32. bxc4 Ra4 $18) 32... Re8) 32. Rc7 {[%emt 0:05:22]} bxa2+ {[%emt 0:00:39]} 33. Ka1 {[%emt 0:00:25]} Qe6 {[%emt 0:00:05][%cal Ob5b4]} 34. Rf1 {[%emt 0:00:20][%cal Rf4f7] Active counter play!} f5 {[%emt 0:03:38]} 35. gxf6 {[%emt 0:01:21] [#] Threatening mate with Rg1.} Ra4 {[%emt 0:00:01]} 36. Qe3 {[%emt 0:01:18] Hoping for d7.} b4 {[%emt 0:01:03]} 37. Rg1 {[%emt 0:01:54] White mates.} Qf5 {[%emt 0:00:14]} 38. Qb3+ {[%emt 0:00:06]} Kh8 {[%emt 0:00:05]} 39. Rh7+ {[%emt 0:00:03] Weighted Error Value: White=0.10 (very precise) /Black=0.41} 1-0

[Event "1000GM Saint Louis 2022"]
[Site "Saint Louis"]
[Date "2022.07.21"]
[Round "6.2"]
[White "Yu, Jennifer"]
[Black "Kretchetov, Alexandre"]
[Result "1-0"]
[ECO "A25"]
[WhiteElo "2268"]
[BlackElo "2219"]
[Annotator "TA"]
[PlyCount "57"]
[EventDate "2022.07.20"]
[EventType "tourn"]
[EventCountry "USA"]
[SourceTitle "playchess.com"]
[Source "ChessBase"]
[SourceQuality "1"]
[TimeControl "5400+30"]

{[%evp 10,57,25,31,31,29,68,61,94,93,112,117,187,85,83,70,61,60,75,89,152,150,201,195,193,199,235,200,460,463,419,455,439,433,413,433,435,429,442,425,431,409,493,468,467,441,465,460,29996,29997]} 1. c4 {[%emt 0:00:07]} e5 {[%emt 0:00:34]} 2. g3 {[%emt 0:00:11]} Nc6 {[%emt 0:00:07]} 3. Bg2 {[%emt 0:00:10]} d6 {[%emt 0:00:04]} 4. Nc3 {[%emt 0:00:59]} Be6 {[%emt 0:00:06]} 5. Nd5 {[%emt 0:01:55]} Qd7 {[%emt 0:00:34]} 6. d3 {[%emt 0:01:13]} Nge7 {[%emt 0:02:06] A25: English Opening vs King's Indian with ...Nc6 but without early d3.} 7. e3 {[%emt 0:10:30]} Bxd5 {[%emt 0:24:09]} 8. cxd5 {[%emt 0:00:20]} Nb4 {[%emt 0:00:11] [#] White is slightly better.} 9. Qb3 $146 {[%emt 0:03:32]} ({Predecessor:} 9. e4 Qb5 10. Ke2 c6 11. Qb3 Qb6 12. Be3 c5 13. Qa4+ Kd8 14. Bd2 Qa6 15. Qb3 {1-0 (27) Heinrich,G-Troeger,P Neustadt an der Weinstrasse 1957}) 9... Qb5 {[%emt 0:00:06][%csl LRd3,LRd5]} 10. Ke2 {[%emt 0:00:11] aiming for a3.} a6 {[%emt 0:00:10] [#]} (10... Nexd5 $2 11. a3 $18) (10... Qb6 $16) 11. a4 {[%emt 0:09:27]} (11. e4 $1 $18 {and the rest is easy.}) 11... Qb6 $16 {[%emt 0:00:05]} 12. Bd2 $36 {[%emt 0:10:20][%mdl 2048] White fights for an advantage.} a5 {[%emt 0:00:07]} 13. Rc1 {[%emt 0:01:44][%cal Ba1c1,Bc1c4,Bc4b4][%mdl 32]} g6 {[%emt 0:01:04]} 14. Bxb4 {[%emt 0:05:41][%cal Oc1c4] Black is now going downhill.} axb4 {[%emt 0:12:05] [#]} (14... Bg7 $142) 15. Rc4 $1 {[%emt 0:00:00]} c5 {[%emt 0:03:18]} (15... Qa5 $16) 16. dxc6 $1 $18 {[%emt 0:00:00]} bxc6 {[%emt 0:00:13]} 17. Rxb4 {[%emt 0:00:14]} Qd8 {[%emt 0:00:08]} 18. Rb7 {[%emt 0:09:01][%cal Og2c6] White wants to mate with Bxc6+!} Bg7 $2 {[%emt 0:04:29] [#]} (18... d5 19. Nf3 Qd6) 19. Bxc6+ $1 {[%emt 0:00:04][%mdl 512]} Kf8 {[%emt 0:00:25] [#]} 20. Nf3 $1 {[%emt 0:09:13]} Bf6 {[%emt 0:00:06] [#]} 21. Rxe7 $1 {[%emt 0:00:17]} Bxe7 {[%emt 0:00:04]} 22. Bxa8 {[%emt 0:00:26]} Qxa8 {[%emt 0:00:04]} 23. Rc1 {[%emt 0:00:34] Strongly threatening Rc7.} Kg7 {[%emt 0:00:02]} 24. Rc7 {[%emt 0:00:32]} Rb8 {[%emt 0:00:10]} 25. Qa2 {[%emt 0:01:47]} Kf8 {[%emt 0:00:58] [#]} 26. Ng5 $1 {[%emt 0:11:14][%csl Gg5][%cal Ra2f7][%mdl 512]} d5 {[%emt 0:00:05]} 27. Nxh7+ {[%emt 0:00:03]} Ke8 {[%emt 0:00:15]} 28. a5 {[%emt 0:01:37] White threatens Qa4+ and mate.} e4 {[%emt 0:02:37]} (28... Kd8 $18) 29. Qa4+ {[%emt 0:00:22] Weighted Error Value: White=0.05 (flawless) /Black=0.61} 1-0